fUSD/lending_fUSD_20250213
["ID","MTS","AMOUNT","RATE_DAILY","PERIOD"]
[352944485,1739453437591,-151.0,0.00014985,2]
[352944486,1739453437600,-500.0,0.00014985,2]
[352944487,1739453437614,-501.1776116,0.00014985,2]
[352944488,1739453437624,-509.85459837,0.00014985,2]
[352944489,1739453437634,-202.133744,0.00014985,2]
[352944490,1739453437643,-500.0,0.00014985,2]
[352944492,1739453437653,-500.0,0.00014985,2]
[352944494,1739453437665,-500.0,0.00014985,2]
[352944497,1739453437674,-528.78,0.00014985,2]
[352944500,1739453437683,-500.0,0.00014985,2]
[352944503,1739453437693,-500.0,0.00014985,2]
[352944505,1739453437702,-500.0,0.00014985,2]
[352944508,1739453437712,-500.0,0.00014985,2]
[352944510,1739453437721,-528.09,0.00014985,2]
[352944512,1739453437731,-699.71,0.00014985,2]
[352944513,1739453437745,-500.0,0.00014985,2]
[352944514,1739453437760,-773.21,0.00014985,2]
[352944515,1739453437770,-548.18,0.00014985,2]
[352944516,1739453437780,-579.98,0.00014985,2]
[352944517,1739453437790,-500.0,0.00014985,2]
[352944518,1739453437799,-500.0,0.00014985,2]
[352944519,1739453437809,-928.39,0.00014985,2]
[352944522,1739453437819,-519.71,0.00014985,2]
[352944525,1739453437828,-157.54231981,0.00014985,2]
[352944528,1739453437838,-502.67335528,0.00014985,2]
[352944531,1739453437847,-500.0,0.00014985,2]
[352944533,1739453437859,-500.0,0.00014985,2]
[352944535,1739453437870,-500.0,0.00014985,2]
[352944537,1739453437879,-228.048109,0.00014985,2]
[352944539,1739453437889,-506.0581741,0.00014985,2]
[352944541,1739453437898,-1083.23,0.00014985,2]
[352944543,1739453437908,-500.0,0.00014985,2]
[352944545,1739453437917,-151.395094,0.00014985,2]
[352944547,1739453437927,-500.0,0.00014985,2]
[352944549,1739453437937,-500.0,0.00014985,2]
[352944551,1739453437947,-500.0,0.00014985,7]
[352944553,1739453437957,-500.0,0.00014985,2]
[352944555,1739453437967,-561.43,0.00014985,2]
[352944556,1739453437976,-728.79,0.00014985,2]
[352944557,1739453437987,-500.0,0.00014985,2]
[352944558,1739453437997,-500.0,0.00014985,2]
[352944559,1739453438006,-500.0,0.00014985,2]
[352944560,1739453438016,-151.0,0.00014985,2]
[352944561,1739453438026,-151.0,0.00014985,2]
[352944562,1739453438035,-500.0,0.00014985,2]
[352944563,1739453438045,-500.0,0.00014985,2]
[352944564,1739453438054,-500.0,0.00014985,2]
[352944565,1739453438064,-151.0,0.00014985,2]
[352944566,1739453438074,-500.0,0.00014985,2]
[352944567,1739453438084,-500.0,0.00014985,2]
[352944568,1739453438093,-539.56,0.00014985,2]
[352944569,1739453438103,-555.17,0.00014985,2]
[352944570,1739453438117,-858.03,0.00014985,2]
[352944571,1739453438126,-607.78,0.00014985,2]
[352944572,1739453438136,-1050.35,0.00014985,2]
[352944573,1739453438146,-500.0,0.00014985,2]
[352944574,1739453438155,-500.0,0.00014985,2]
[352944575,1739453438166,-768.29,0.00014985,2]
[352944576,1739453438176,-500.0,0.00014985,2]
[352944577,1739453438186,-621.43,0.00014985,2]
[352944578,1739453438196,-506.81,0.00014985,2]
[352944579,1739453438206,-952.61,0.00014985,2]
[352944580,1739453438216,-780.49,0.00014985,2]
[352944581,1739453438230,-500.0,0.00014985,2]
[352944582,1739453438240,-725.05,0.00014985,2]
[352944583,1739453438250,-582.7,0.00014985,2]
[352944584,1739453438259,-500.0,0.00014985,2]
[352944585,1739453438271,-500.0,0.00014985,2]
[352944586,1739453438281,-151.0,0.00014985,2]
[352944587,1739453438290,-151.0,0.00014985,2]
[352944588,1739453438300,-1172.67,0.00014985,2]
[352944589,1739453438310,-500.0,0.00014985,2]
[352944590,1739453438321,-500.0,0.00014985,2]
[352944591,1739453438331,-697.72,0.00014985,2]
[352944592,1739453438340,-1500.58,0.00014985,2]
[352944594,1739453438350,-500.0,0.00014985,2]
[352944596,1739453438364,-500.0,0.00014985,2]
[352944598,1739453438374,-500.0,0.00014985,2]
[352944600,1739453438384,-836.83,0.00014985,2]
[352944601,1739453438394,-151.0,0.00014985,2]
[352944603,1739453438404,-151.0,0.00014985,2]
[352944605,1739453438414,-1738.52,0.00014985,2]
[352944606,1739453438423,-685.98,0.00014985,2]
[352944608,1739453438432,-500.0,0.00014985,2]
[352944610,1739453438441,-500.0,0.00014985,2]
[352944612,1739453438450,-500.0,0.00014985,2]
[352944614,1739453438460,-500.0,0.00014985,2]
[352944616,1739453438470,-500.0,0.00014985,2]
[352944617,1739453438480,-517.79341037,0.00014985,2]
[352944619,1739453438490,-500.0,0.00014985,2]
[352944621,1739453438500,-500.0,0.00014985,2]
[352944623,1739453438509,-500.0,0.00014985,2]
[352944625,1739453438519,-983.77,0.00014985,2]
[352944627,1739453438528,-620.91,0.00014985,2]
[352944629,1739453438538,-1060.42,0.00014985,2]
[352944631,1739453438547,-802.42,0.00014985,2]
[352944633,1739453438557,-500.0,0.00014985,2]
[352944635,1739453438566,-500.0,0.00014985,2]
[352944636,1739453438576,-500.0,0.00014985,2]
[352944637,1739453438586,-568.5,0.00014985,2]
[352944638,1739453438596,-845.75,0.00014985,2]
[352944639,1739453438611,-500.0,0.00014985,2]
[352944640,1739453438620,-963.12,0.00014985,2]
[352944641,1739453438630,-649.45,0.00014985,2]
[352944642,1739453438639,-500.0,0.00014985,2]
[352944644,1739453438649,-500.0,0.00014985,2]
[352944646,1739453438658,-1004.16,0.00014985,2]
[352944648,1739453438667,-500.0,0.00014985,2]
[352944650,1739453438677,-1768.93,0.00014985,2]
[352944651,1739453438687,-500.0,0.00014985,2]
[352944653,1739453438696,-500.0,0.00014985,2]
[352944655,1739453438706,-1458.98,0.00014985,2]
[352944657,1739453438715,-500.0,0.00014985,2]
[352944659,1739453438725,-500.0,0.00014985,2]
[352944661,1739453438734,-500.0,0.00014985,2]
[352944663,1739453438743,-343.52763871,0.00014985,2]
[352944665,1739453438753,-500.0,0.00014985,2]
[352944667,1739453438763,-497.6851223,0.00014985,2]
[352944669,1739453438772,-500.0,0.00014985,2]
[352944671,1739453438782,-613.43816393,0.00014985,2]
[352944673,1739453438791,-500.0,0.00014985,2]
[352944675,1739453438800,-1957.38,0.00014985,2]
[352944677,1739453438810,-2160.18,0.00014985,2]
[352944679,1739453438820,-500.0,0.00014985,2]
[352944681,1739453438829,-500.0,0.00014985,2]
[352944683,1739453438839,-500.0,0.00014985,2]
[352944685,1739453438848,-500.0,0.00014985,2]
[352944687,1739453438861,-500.0,0.00014985,2]
[352944689,1739453438871,-500.0,0.00014985,2]
[352944691,1739453438880,-1121.87,0.00014985,2]
[352944693,1739453438889,-686.0,0.00014985,2]
[352944695,1739453438898,-938.54,0.00014985,2]
[352944697,1739453438907,-126.6483438,0.00014985,2]
[352944702,1739453438950,-373.3516562,0.00014985,2]
[352944704,1739453438960,-384.5383443,0.00014985,2]
[352944706,1739453438972,-115.4616557,0.00014985,2]
[352944708,1739453438981,-395.2128253,0.00014985,2]
[352944727,1739453439173,-104.7871747,0.00014985,2]
[352944729,1739453439184,-451.5403853,0.00014985,2]
[352944744,1739453439453,-48.4596147,0.00014985,2]
[352944745,1739453439463,-541.75,0.00014985,2]
[352944746,1739453439474,-298.44454881,0.00014985,2]
[352944747,1739453439485,-151.0,0.00014985,2]
[352944748,1739453439495,-500.0,0.00014985,2]
[352944749,1739453439506,-710.34740218,0.00014985,2]
[352944754,1739453441144,-504.42745652,0.000144,5]
[352944755,1739453441161,-495.57254348,0.000144,5]
[352944756,1739453441171,-992.3121726,0.000145,5]
[352944757,1739453441182,-207.6878274,0.000145,5]
[352944758,1739453441192,-49.81763781,0.000146,5]
[352944759,1739453441204,-150.18236219,0.000146,5]
[352944760,1739453441214,-234.36763781,0.00014884,2]
[352944761,1739453441230,-72.39551185,0.00014884,2]
[352944762,1739453441241,-3915.0,0.00014983,2]
[352944763,1739453441251,-640.0,0.00014983,2]
[352944764,1739453441262,-199.1082983,0.00014983,2]
[352944765,1739453441274,-500.0,0.00014984,2]
[352944766,1739453441284,-380.15259782,0.00014985,2]
[352944767,1739453441294,-591.89793714,0.00014985,2]
[352944768,1739453441305,-509.2,0.00014985,2]
[352944769,1739453441315,-500.0,0.00014985,2]
[352944770,1739453441324,-500.0,0.00014985,2]
[352944771,1739453441334,-929.65,0.00014985,2]
[352944772,1739453441344,-500.0,0.00014985,2]
[352944773,1739453441354,-608.18,0.00014985,2]
[352944774,1739453441370,-500.0,0.00014985,2]
[352944775,1739453441380,-907.88,0.00014985,2]
[352944776,1739453441389,-152.982545,0.00014985,2]
[352944777,1739453441399,-411.225582,0.00014985,2]
[352944778,1739453441409,-411.225582,0.00014985,2]
[352944779,1739453441419,-671.86,0.00014985,2]
[352944780,1739453441432,-152.208208,0.00014985,2]
[352944781,1739453441442,-2006.83,0.00014985,2]
[352944782,1739453441452,-500.0,0.00014985,2]
[352944783,1739453441461,-500.0,0.00014985,2]
[352944784,1739453441471,-1170.79,0.00014985,2]
[352944785,1739453441481,-151.0,0.00014985,2]
[352944786,1739453441491,-151.0,0.00014985,2]
[352944787,1739453441501,-500.0,0.00014985,2]
[352944788,1739453441511,-524.83,0.00014985,2]
[352944789,1739453441520,-960.39,0.00014985,2]
[352944790,1739453441530,-151.0,0.00014985,2]
[352944791,1739453441539,-801.49,0.00014985,2]
[352944792,1739453441549,-1273.42,0.00014985,2]
[352944793,1739453441559,-1964.15,0.00014985,2]
[352944794,1739453441569,-500.0,0.00014985,2]
[352944795,1739453441578,-531.49,0.00014985,2]
[352944796,1739453441588,-500.0,0.00014985,2]
[352944797,1739453441599,-500.0,0.00014985,2]
[352944798,1739453441610,-151.0,0.00014985,2]
[352944799,1739453441620,-151.0,0.00014985,2]
[352944800,1739453441630,-151.0,0.00014985,2]
[352944801,1739453441640,-151.0,0.00014985,2]
[352944802,1739453441649,-500.0,0.00014985,2]
[352944803,1739453441659,-1184.21,0.00014985,2]
[352944804,1739453441669,-500.0,0.00014985,2]
[352944805,1739453441679,-1731.57,0.00014985,2]
[352944806,1739453441904,-844.0,0.00014985,2]
[352944807,1739453441914,-831.86,0.00014985,2]
[352944808,1739453441923,-500.0,0.00014985,2]
[352944809,1739453441933,-650.85,0.00014985,2]
[352944810,1739453441946,-1787.17,0.00014985,2]
[352944811,1739453441956,-500.0,0.00014985,2]
[352944812,1739453441965,-500.0,0.00014985,2]
[352944813,1739453441975,-859.69,0.00014985,2]
[352944814,1739453441984,-1797.3,0.00014985,2]
[352944815,1739453441995,-500.0,0.00014985,2]
[352944816,1739453442005,-1310.16,0.00014985,2]
[352944817,1739453442014,-500.0,0.00014985,2]
[352944818,1739453442024,-1024.32,0.00014985,2]
[352944819,1739453442034,-543.58,0.00014985,2]
[352944820,1739453442043,-892.36,0.00014985,2]
[352944821,1739453442053,-500.0,0.00014985,2]
[352944822,1739453442062,-702.4,0.00014985,2]
[352944823,1739453442072,-2049.79,0.00014985,2]
[352944824,1739453442082,-1201.94,0.00014985,2]
[352944825,1739453442092,-151.0,0.00014986,2]
[352944826,1739453442101,-151.0,0.00014986,2]
[352944827,1739453442115,-179.945473,0.00014986,2]
[352944828,1739453442124,-151.0,0.00014986,2]
[352944829,1739453442139,-500.0,0.00014986,2]
[352944830,1739453442149,-1968.74,0.00014986,2]
[352944831,1739453442158,-938.86,0.00014986,2]
[352944832,1739453442168,-1148.12,0.00014986,2]
[352944833,1739453442178,-591.36,0.00014986,2]
[352944834,1739453442188,-500.0,0.00014986,2]
[352944835,1739453442197,-500.0,0.00014986,2]
[352944836,1739453442207,-549.89,0.00014986,2]
[352944837,1739453442216,-589.64,0.00014986,2]
[352944838,1739453442228,-994.28,0.00014986,2]
[352944839,1739453442238,-500.0,0.00014986,2]
[352944840,1739453442247,-500.0,0.00014986,2]
[352944841,1739453442257,-582.01,0.00014986,2]
[352944842,1739453442267,-1125.81,0.00014986,2]
[352944843,1739453442277,-500.0,0.00014986,2]
[352944844,1739453442287,-151.0,0.00014986,2]
[352944845,1739453442297,-151.0,0.00014986,2]
[352944846,1739453442310,-151.0,0.00014987,2]
[352944847,1739453442321,-151.0,0.00014987,2]
[352944848,1739453442331,-502.44973,0.00014989,2]
[352944849,1739453442341,-824.22,0.00014989,2]
[352944850,1739453442351,-131421.11853487,0.0001499,3]
[352944851,1739453442767,-1713.56068351,0.0001499,3]
[352944852,1739453442780,-13336.42233272,0.0001499,3]
[352944853,1739453442792,-13565.0,0.0001499,3]
[352944854,1739453442804,-20613.11336725,0.0001499,3]
[352944855,1739453442816,-32874.96524674,0.0001499,3]
[352944859,1739453442922,-9901.5,0.0001499,3]
[352944860,1739453442934,-90372.80200705,0.0001499,3]
[352944861,1739453442945,-200.0,0.0001499,2]
[352944862,1739453442955,-151.0,0.0001499,2]
[352944863,1739453442966,-151.0,0.0001499,2]
[352944864,1739453442977,-151.0,0.0001499,2]
[352944865,1739453442987,-151.0,0.0001499,2]
[352944866,1739453442998,-411.225582,0.0001499,2]
[352944867,1739453443010,-411.225582,0.0001499,2]
[352944868,1739453443021,-151.0,0.0001499,2]
[352944869,1739453443031,-151.0,0.0001499,2]
[352944871,1739453443043,-151.0,0.0001499,2]
[352944873,1739453443054,-384.17661649,0.00014991,2]
[352944874,1739453443065,-27851.66607184,0.00014998,2]
[352944876,1739453443076,-384.17661649,0.00014998,2]
[352944877,1739453443086,-824.22,0.00014999,2]
[352944878,1739453443096,-33550.69143626,0.00015,7]
[352944879,1739453443106,-267.98,0.00015,2]
[352944880,1739453443122,-516.0,0.00015,2]
[352944881,1739453443132,-1605.0,0.00015,3]
[352944882,1739453443145,-600.0,0.00015,2]
[352944883,1739453443156,-2458.04013013,0.00015004,2]
[352944884,1739453443167,-384.17661649,0.00015006,2]
[352944885,1739453443176,-384.17661649,0.00015013,2]
[352944886,1739453443187,-384.17661649,0.0001502,2]
[352944887,1739453443198,-173.77693293,0.00015022,2]
[352944888,1739453443208,-1059.0,0.00015028,2]
[352944889,1739453443218,-416.20925985,0.00015028,2]
[352944890,1739453443244,-2041.83087028,0.00015028,2]
[352944891,1739453443253,-287.28,0.00015041,2]
[352944892,1739453443263,-2458.04013013,0.00015052,2]
[352944893,1739453443275,-169.32,0.00015054,2]
[352944894,1739453443285,-150.0,0.00015068,2]
[352944895,1739453443295,-2458.04013013,0.00015076,2]
[352944896,1739453443305,-173.7769329,0.00015092,2]
[352944897,1739453443315,-150.0,0.00015096,2]
[352944898,1739453443325,-150.0,0.00015096,2]
[352944899,1739453443335,-150.0,0.00015096,2]
[352944900,1739453443345,-2458.04013013,0.000151,2]
[352944901,1739453443354,-250.0,0.000151,2]
[352944902,1739453443368,-250.0,0.000151,2]
[352944903,1739453443378,-250.0,0.000151,2]
[352944904,1739453443387,-250.0,0.000151,2]
[352944905,1739453443396,-250.0,0.000151,2]
[352944906,1739453443406,-250.0,0.000151,2]
[352944907,1739453443415,-250.0,0.000151,2]
[352944908,1739453443426,-250.0,0.000151,2]
[352944909,1739453443435,-250.0,0.000151,2]
[352944910,1739453443445,-250.0,0.000151,2]
[352944911,1739453443455,-250.0,0.000151,2]
[352944912,1739453443464,-250.0,0.000151,2]
[352944914,1739453443474,-250.0,0.000151,2]
[352944915,1739453443483,-488.31363584,0.000151,2]
[352944916,1739453443494,-250.9,0.000151,2]
[352944917,1739453443504,-171.5057766,0.000151,2]
[352944918,1739453443514,-751.0,0.00015116,2]
[352944919,1739453443523,-151.0,0.00015116,2]
[352944920,1739453443533,-151.0,0.00015116,2]
[352944921,1739453443543,-151.0,0.00015116,2]
[352944922,1739453443553,-151.0,0.00015116,2]
[352944923,1739453443562,-411.225582,0.00015116,2]
[352944924,1739453443572,-411.225582,0.00015116,2]
[352944925,1739453443582,-151.0,0.00015116,2]
[352944926,1739453443591,-151.0,0.00015116,2]
[352944927,1739453443600,-151.0,0.00015116,2]
[352944928,1739453443614,-550.77186197,0.00015119,3]
[352944929,1739453443623,-313434.10100313,0.00015119,3]
[352944931,1739453444330,-600.0,0.00014164,2]
[352944932,1739453444341,-200.0,0.000147,5]
[352944933,1739453444351,-52.22895866,0.00015119,3]
[352944934,1739453444367,-10099.57736722,0.00015119,3]
[352944935,1739453445016,-1214.60365304,0.00014,4]
[352944936,1739453445026,-329.38432902,0.00015119,3]
[352944937,1739453445038,-797.6075,0.00015119,3]
[352944938,1739453445049,-31045.48805517,0.00015119,3]
[352944939,1739453445062,-22485.87129159,0.00015119,3]
[352944940,1739453445074,-689.77036948,0.00015119,3]
[352944941,1739453445178,-424.71461027,0.00015119,3]
[352944942,1739453445194,-2005.20271526,0.00015119,3]
[352944943,1739453445207,-960.0,0.00015119,3]
[352944944,1739453445219,-116260.23823978,0.00015119,3]
[352944945,1739453445472,4858.3452,8.836e-05,2]
[352944951,1739453446012,-200.0,0.000148,5]
[352944952,1739453446022,-69.08,0.000149,5]
[352944953,1739453446254,-471.29742981,0.00014883,2]
[352944954,1739453446265,-130.92,0.000149,5]
[352944955,1739453446277,-1008.0,0.00014983,2]
[352944956,1739453446286,-820.18306168,0.00015119,3]
[352944958,1739453446297,-9604.2958935,0.00015119,3]
[352944959,1739453446308,-102762.9383615,0.00015119,3]
[352944962,1739453446320,-1490.21645,0.00015119,3]
[352944963,1739453446331,-67491.76177096,0.00015119,3]
[352944964,1739453446348,-495.193653,0.00015119,3]
[352944966,1739453447024,-3578.26330554,0.00015119,3]
[352944967,1739453451381,1127.57326472,0.00012,2]
[352944968,1739453455076,267.7942,8.119e-05,2]
[352944969,1739453460146,3258.85589728,8.836e-05,2]
[352944970,1739453460187,9550.99780272,8.836e-05,2]
[352944971,1739453462447,449.00219728,8.973e-05,2]
[352944972,1739453462469,4550.99780272,8.973e-05,2]
[352944973,1739453465326,5449.00219728,8.699e-05,2]
[352944974,1739453465358,10000.0,8.699e-05,2]
[352944975,1739453465381,9780.58330272,8.699e-05,2]
[352944976,1739453484185,219.41669728,8.851e-05,2]
[352944977,1739453484212,2280.58330272,8.851e-05,2]
[352944978,1739453488566,2540.8646,8.699e-05,2]
[352944979,1739453504730,5178.55209728,8.836e-05,2]
[352944980,1739453504751,8740.12870272,8.836e-05,2]
[352944981,1739453562111,1259.87129728,8.836e-05,2]
[352944982,1739453562131,1845.58950272,8.836e-05,2]
[352944983,1739453566608,2470.114,8.973e-05,2]
[352944984,1739453578596,5684.29649728,8.973e-05,2]
[352944985,1739453578618,10000.0,8.973e-05,2]
[352944986,1739453578640,9953.14100272,8.973e-05,2]
[352944987,1739453610684,46.85899728,8.851e-05,2]
[352944988,1739453610706,953.14100272,8.851e-05,2]
[352944989,1739453635591,9046.85899728,8.836e-05,2]
[352944990,1739453635615,8102.96140272,8.836e-05,2]
[352944991,1739453647228,1897.03859728,8.699e-05,2]
[352944992,1739453647251,3887.18510272,8.699e-05,2]
[352944993,1739453660399,500.0,8.851e-05,2]
[352944994,1739453665882,1535.9195,8.851e-05,2]
[352944995,1739453671611,339.5404,8.699e-05,2]
[352944996,1739453685608,179.598,8.119e-05,2]
[352944997,1739453692292,3557.75699728,8.973e-05,2]
[352944998,1739453692316,1442.24300272,8.973e-05,2]
[352944999,1739453703074,152.0,8.973e-05,30]
[352945000,1739453703387,152.0,0.0001223,30]
[352945001,1739453704587,8433.138,8.836e-05,2]
[352945002,1739453710520,124.61899728,8.973e-05,2]
[352945003,1739453710544,10000.0,8.973e-05,2]
[352945004,1739453710566,10000.0,8.973e-05,2]
[352945005,1739453710587,10000.0,8.973e-05,2]
[352945006,1739453710612,10000.0,8.973e-05,2]
[352945007,1739453710634,4277.34650272,8.973e-05,2]
[352945008,1739453724633,5400.9276,8.256e-05,2]
[352945009,1739453761331,321.72589728,8.836e-05,2]
[352945010,1739453761355,10000.0,8.836e-05,2]
[352945011,1739453761377,10000.0,8.836e-05,2]
[352945012,1739453761399,10000.0,8.836e-05,2]
[352945013,1739453761420,5944.52610272,8.836e-05,2]
[352945014,1739453786729,4055.47389728,8.836e-05,2]
[352945015,1739453786759,28627.17020272,8.836e-05,2]
[352945016,1739453791007,1950.0346,8.973e-05,2]
[352945017,1739453798449,2011.093,8.699e-05,2]
[352945018,1739453806066,1342.9371,8.699e-05,2]
[352945019,1739453811025,312.4559,8.699e-05,2]
[352945020,1739453817803,1967.014,8.836e-05,2]
[352945021,1739453818117,733.2751,8.699e-05,2]
[352945022,1739453841447,3633.2249,8.699e-05,2]
[352945023,1739453841471,10000.0,8.699e-05,2]
[352945024,1739453841493,35.0105,8.699e-05,2]
[352945025,1739453842997,1397.1313,8.699e-05,2]
[352945026,1739453896424,500.0,0.00014982,30]
[352945027,1739453927589,718.859,8.836e-05,2]
[352945028,1739453993018,6972.3257,8.836e-05,2]
[352945029,1739453998833,876.6735,8.699e-05,2]
[352945030,1739453998857,1131.2613,8.699e-05,2]
[352945031,1739454003005,152.0,8.836e-05,30]
[352945032,1739454148126,8868.7387,8.836e-05,2]
[352945033,1739454148149,10000.0,8.836e-05,2]
[352945034,1739454148172,1179.379,8.836e-05,2]
[352945035,1739454167051,500.0,8.851e-05,2]
[352945036,1739454199494,970.6207,8.836e-05,2]
[352945037,1739454228202,6368.9154,8.973e-05,2]
[352945038,1739454267383,511.0343,8.973e-05,2]
[352945039,1739454302704,153.0,8.699e-05,30]
[352945040,1739454325290,177.25,0.00010137,2]
[352945041,1739454363265,292.8006,8.836e-05,2]
[352945042,1739454363294,47812.8288,8.836e-05,2]
[352945043,1739454397117,-314.99087826,0.00013068,2]
[352945044,1739454446153,-385.00912174,0.00013068,2]
[352945045,1739454446176,-500.0,0.00013068,2]
[352945046,1739454446198,-150.0,0.0001318,2]
[352945047,1739454446218,-255.43876431,0.00013326,2]
[352945048,1739454452512,1492.21,0.00011597,2]
[352945049,1739454453119,-793.51751105,0.00013326,2]
[352945050,1739454453144,-1048.95627534,0.00013374,2]
[352945051,1739454453168,-281.09,0.00013426,2]
[352945052,1739454453191,-1976.9,0.00013428,2]
[352945053,1739454453217,-2880.99,0.00013469,2]
[352945054,1739454453239,-4173.47,0.00013474,2]
[352945055,1739454453264,-150.0,0.00013479,2]
[352945056,1739454453287,-1000.0,0.00013507,2]
[352945057,1739454453308,-1800.62,0.0001351,2]
[352945058,1739454453330,-233.69,0.00013511,2]
[352945059,1739454453356,-300.44,0.00013517,2]
[352945060,1739454453382,-388.28,0.00013517,2]
[352945061,1739454453405,-250.0,0.00013517,2]
[352945062,1739454453427,-4034.55571937,0.00013544,2]
[352945065,1739454546034,500.0,0.0002,120]
[352945066,1739454557104,-700.0,0.00013068,2]
[352945067,1739454557127,-800.0,0.00013068,2]
[352945068,1739454557148,-167.54096766,0.00013442,2]
[352945069,1739454557170,-163.94,0.00013493,2]
[352945070,1739454557195,-1238.35,0.00013515,2]
[352945071,1739454557217,-300.0,0.00013535,2]
[352945072,1739454557237,-14782.46,0.00013536,2]
[352945073,1739454557260,-200.0,0.00013543,2]
[352945074,1739454557281,-3366.05960186,0.00013544,2]
[352945075,1739454557303,-150.0,0.00013584,2]
[352945076,1739454557326,-3675.11,0.00013625,2]
[352945077,1739454557351,-150.0,0.0001366,2]
[352945078,1739454557374,-155.4935628,0.0001366,2]
[352945079,1739454557398,-150.0,0.0001366,2]
[352945080,1739454557421,-167.54096765,0.00013735,2]
[352945081,1739454557445,-150.0,0.00013753,2]
[352945082,1739454557471,-1492.21,0.00013861,2]
[352945083,1739454557493,-492.58,0.00013883,2]
[352945084,1739454557515,-1500.0,0.00013904,2]
[352945085,1739454557537,-2000.0,0.00013929,2]
[352945086,1739454557560,-165.97,0.0001393,2]
[352945087,1739454557582,-566.57,0.00013941,2]
[352945088,1739454557603,-300.0,0.00013941,2]
[352945089,1739454557627,-566.57,0.00013945,2]
[352945090,1739454557654,-566.57,0.00013949,2]
[352945091,1739454557676,-566.57,0.00013952,2]
[352945092,1739454557701,-2000.91,0.00013952,2]
[352945093,1739454557724,-566.57,0.00013956,2]
[352945094,1739454557747,-566.57,0.0001396,2]
[352945095,1739454557770,-566.57,0.00013963,2]
[352945096,1739454557794,-150.0,0.00013964,2]
[352945097,1739454557818,-150.0,0.00013964,2]
[352945098,1739454557840,-566.57,0.00013967,2]
[352945099,1739454557865,-566.57,0.00013971,2]
[352945100,1739454557887,-566.57,0.00013974,2]
[352945101,1739454557910,-566.57,0.00013978,2]
[352945102,1739454557933,-566.57,0.00013982,2]
[352945103,1739454557956,-566.57,0.00013985,2]
[352945104,1739454557977,-150.0,0.00013989,2]
[352945105,1739454558001,-566.57,0.00013989,2]
[352945106,1739454558025,-566.57,0.00013993,2]
[352945107,1739454558047,-566.57,0.00013996,2]
[352945108,1739454558071,-566.57,0.00014,2]
[352945109,1739454558094,-566.57,0.00014004,2]
[352945110,1739454558117,-566.57,0.00014007,2]
[352945111,1739454558141,-566.57,0.00014011,2]
[352945112,1739454558163,-167.54096765,0.00014027,2]
[352945113,1739454558188,-1647.95,0.00014053,2]
[352945114,1739454558211,-178.49,0.00014055,2]
[352945115,1739454558232,-500.0,0.00014069,2]
[352945116,1739454558255,-2000.0,0.00014069,2]
[352945117,1739454558277,-1108.87,0.00014069,2]
[352945118,1739454558298,-1004.75795664,0.00014122,2]
[352945119,1739454558321,-12584.35683925,0.00014124,2]
[352945120,1739454558344,-23900.0,0.00014127,2]
[352945121,1739454558368,-1524.11,0.00014136,2]
[352945122,1739454558394,-500.0,0.00014164,2]
[352945123,1739454558415,-152.0,0.00014249,3]
[352945124,1739454558441,-150.0,0.00014267,2]
[352945125,1739454558464,-150.0,0.00014267,2]
[352945126,1739454558486,-250.0,0.0001435,2]
[352945127,1739454558510,-150.0,0.00014375,2]